[Event "NJSK 2018 Jeugd B"]
[Site "Assen, Netherlands"]
[Date "2018.05.03"]
[Round "5.8"]
[White "Ypma, Jord"]
[Black "Gevorkjan, Lewon"]
[Result "0-1"]
[TimeControl "40/90m+30m+30sec/move"]
[WhiteElo "1737"]
[BlackElo "1821"]

1. d4 {[%clk 01:30:58]} {[%emt 00:00:01]} Nf6 {[%clk 01:30:49]} {[%emt
00:00:11]} 2. Bf4 {[%clk 01:30:57]} {[%emt 00:00:32]} e6 {[%clk 01:30:01]}
{[%emt 00:01:18]} 3. e3 {[%clk 01:31:00]} {[%emt 00:00:26]} c5 {[%clk
01:26:42]} {[%emt 00:03:50]} 4. Nf3 {[%clk 01:30:31]} {[%emt 00:00:59]} Nc6
{[%clk 01:22:12]} {[%emt 00:05:00]} 5. c3 {[%clk 01:30:11]} {[%emt 00:00:49]}
Be7 {[%clk 01:21:00]} {[%emt 00:01:42]} 6. h3 {[%clk 01:29:23]} {[%emt
00:01:18]} b6 {[%clk 01:20:13]} {[%emt 00:01:18]} 7. Nbd2 {[%clk 01:29:37]}
{[%emt 00:00:16]} O-O {[%clk 01:18:32]} {[%emt 00:02:10]} 8. Bd3 {[%clk
01:29:57]} {[%emt 00:00:10]} Bb7 {[%clk 01:17:06]} {[%emt 00:01:57]} 9. O-O
{[%clk 01:29:49]} {[%emt 00:00:38]} cxd4 {[%clk 01:17:07]} {[%emt 00:00:29]} 10.
exd4 {[%clk 01:30:00]} {[%emt 00:00:18]} Nh5 {[%clk 01:14:55]} {[%emt
00:02:42]} 11. Bh2 {[%clk 01:30:02]} {[%emt 00:00:29]} f5 {[%clk 01:15:14]}
{[%emt 00:00:11]} 12. Ne5 {[%clk 01:25:22]} {[%emt 00:05:09]} Nxe5 {[%clk
01:13:44]} {[%emt 00:02:00]} 13. Bxe5 {[%clk 01:25:25]} {[%emt 00:00:27]} Nf6
{[%clk 01:13:56]} {[%emt 00:00:19]} 14. Qe2 {[%clk 01:25:26]} {[%emt 00:00:28]}
Qe8 {[%clk 01:11:07]} {[%emt 00:03:20]} 15. Bxf6 {[%clk 01:19:16]} {[%emt
00:06:40]} Bxf6 {[%clk 01:09:37]} {[%emt 00:01:59]} 16. f4 {[%clk 01:19:24]}
{[%emt 00:00:22]} Kh8 {[%clk 01:02:20]} {[%emt 00:07:48]} 17. Nf3 {[%clk
01:19:05]} {[%emt 00:00:48]} Rg8 {[%clk 01:02:28]} {[%emt 00:00:23]} 18. Ba6
{[%clk 01:04:46]} {[%emt 00:14:49]} Bxf3 {[%clk 00:55:47]} {[%emt 00:07:11]} 19.
Qxf3 {[%clk 01:03:57]} {[%emt 00:01:17]} Rb8 {[%clk 00:49:19]} {[%emt
00:07:00]} 20. a4 {[%clk 01:03:07]} {[%emt 00:01:19]} Qf7 {[%clk 00:48:52]}
{[%emt 00:00:58]} 21. Be2 {[%clk 00:59:59]} {[%emt 00:03:37]} g5 {[%clk
00:42:38]} {[%emt 00:06:45]} 22. fxg5 {[%clk 00:58:57]} {[%emt 00:01:32]} Rxg5
{[%clk 00:41:44]} {[%emt 00:01:23]} 23. Qd3 {[%clk 00:58:57]} {[%emt 00:00:30]}
Rbg8 {[%clk 00:41:11]} {[%emt 00:01:03]} 24. Bf3 {[%clk 00:59:06]} {[%emt
00:00:21]} Rg3 {[%clk 00:39:33]} {[%emt 00:02:08]} 25. Qe2 {[%clk 00:57:31]}
{[%emt 00:02:05]} Rxh3 {[%clk 00:27:27]} {[%emt 00:12:36]} 26. Kf2 {[%clk
00:55:38]} {[%emt 00:02:23]} Rhg3 {[%clk 00:27:16]} {[%emt 00:00:41]} 27. Ke3
{[%clk 00:53:12]} {[%emt 00:02:56]} Qe7 {[%clk 00:20:56]} {[%emt 00:06:50]} 28.
Kd2 {[%clk 00:52:20]} {[%emt 00:01:22]} Qd6 {[%clk 00:20:33]} {[%emt 00:00:53]}
29. Kc2 {[%clk 00:50:46]} {[%emt 00:02:04]} Rc8 {[%clk 00:18:43]} {[%emt
00:02:21]} 30. Rad1 {[%clk 00:49:23]} {[%emt 00:01:52]} Rg7 {[%clk 00:14:09]}
{[%emt 00:05:04]} 31. Kb1 {[%clk 00:46:57]} {[%emt 00:02:56]} Qc7 {[%clk
00:12:56]} {[%emt 00:01:44]} 32. Rfe1 {[%clk 00:43:51]} {[%emt 00:03:35]} Qc4
{[%clk 00:12:32]} {[%emt 00:00:55]} 33. Qc2 {[%clk 00:43:19]} {[%emt 00:01:00]}
b5 {[%clk 00:12:05]} {[%emt 00:00:58]} 34. axb5 {[%clk 00:37:28]} {[%emt
00:06:22]} Qxb5 {[%clk 00:12:25]} {[%emt 00:00:10]} 35. Re3 {[%clk 00:26:30]}
{[%emt 00:11:25]} Qb6 {[%clk 00:11:02]} {[%emt 00:01:55]} 36. Re2 {[%clk
00:22:55]} {[%emt 00:04:04]} d5 {[%clk 00:10:22]} {[%emt 00:01:11]} 37. Qd2
{[%clk 00:18:30]} {[%emt 00:04:55]} Rc6 {[%clk 00:09:00]} {[%emt 00:01:53]} 38.
Rde1 {[%clk 00:18:24]} {[%emt 00:00:34]} Rd6 {[%clk 00:05:26]} {[%emt
00:04:04]} 39. Qh6 {[%clk 00:15:39]} {[%emt 00:03:15]} Bg5 {[%clk 00:05:54]}
{[%emt 00:00:02]} 40. Qh5 {[%clk 00:15:42]} {[%emt 00:00:28]} Qc6 {[%clk
00:03:42]} {[%emt 00:02:42]} 41. g4 {[%clk 00:11:33]} {[%emt 00:04:39]} f4
{[%clk 00:29:06]} {[%emt 00:05:06]} 42. Re5 {[%clk 00:39:18]} {[%emt 00:02:44]}
Bf6 {[%clk 00:28:58]} {[%emt 00:00:39]} 43. Bxd5 {[%clk 00:31:41]} {[%emt
00:08:07]} Rxd5 {[%clk 00:19:38]} {[%emt 00:09:50]} 0-1

[Event "NJSK 2018 Jeugd B"]
[Site "Assen, Netherlands"]
[Date "2018.05.04"]
[Round "6.1"]
[White "De Boer, Eelke"]
[Black "Hilwerda, Jonas"]
[Result "1-0"]
[TimeControl "40/90m+30m+30sec/move"]
[WhiteElo "2318"]
[BlackElo "2108"]

1. e4 {[%clk 01:30:58]} e5 {[%clk 01:30:57]} {[%emt 00:00:04]} 2. Nf3 {[%clk
01:31:22]} {[%emt 00:00:05]} Nc6 {[%clk 01:31:26]} {[%emt 00:00:02]} 3. Bb5
{[%clk 01:31:44]} {[%emt 00:00:07]} a6 {[%clk 01:31:53]} {[%emt 00:00:04]} 4.
Ba4 {[%clk 01:32:08]} {[%emt 00:00:06]} d6 {[%clk 01:32:15]} {[%emt 00:00:08]}
5. c3 {[%clk 01:31:42]} {[%emt 00:00:56]} f5 {[%clk 01:32:24]} {[%emt
00:00:21]} 6. d3 {[%clk 01:09:05]} {[%emt 00:23:07]} fxe4 {[%clk 01:26:01]}
{[%emt 00:06:53]} 7. dxe4 {[%clk 01:09:28]} {[%emt 00:00:07]} Nf6 {[%clk
01:26:06]} {[%emt 00:00:25]} 8. O-O {[%clk 01:06:59]} {[%emt 00:02:59]} Bd7
{[%clk 01:24:14]} {[%emt 00:02:22]} 9. Re1 {[%clk 01:03:06]} {[%emt 00:04:22]}
Qe7 {[%clk 01:23:54]} {[%emt 00:00:49]} 10. c4 {[%clk 00:54:03]} {[%emt
00:09:35]} g6 {[%clk 01:16:54]} {[%emt 00:07:30]} 11. Nc3 {[%clk 00:49:54]}
{[%emt 00:04:39]} Bg7 {[%clk 01:15:03]} {[%emt 00:02:20]} 12. Bg5 {[%clk
00:47:57]} {[%emt 00:02:28]} O-O-O {[%clk 01:11:36]} {[%emt 00:03:57]} 13. Nd5
{[%clk 00:40:51]} {[%emt 00:07:35]} Qf7 {[%clk 01:11:44]} {[%emt 00:00:23]} 14.
b4 {[%clk 00:40:24]} {[%emt 00:00:57]} Nxd5 {[%clk 00:59:00]} {[%emt 00:13:14]}
15. cxd5 {[%clk 00:40:20]} {[%emt 00:00:34]} Ne7 {[%clk 00:56:49]} {[%emt
00:02:40]} 16. Rc1 {[%clk 00:40:19]} {[%emt 00:00:32]} Bxa4 {[%clk 00:44:26]}
{[%emt 00:12:52]} 17. Qxa4 {[%clk 00:40:41]} {[%emt 00:00:08]} Qe8 {[%clk
00:42:54]} {[%emt 00:02:02]} 18. b5 {[%clk 00:39:52]} {[%emt 00:01:20]} Kb8
{[%clk 00:42:20]} {[%emt 00:01:03]} 19. Qc4 {[%clk 00:38:07]} {[%emt 00:02:15]}
Rc8 {[%clk 00:41:30]} {[%emt 00:01:20]} 20. bxa6 {[%clk 00:38:25]} {[%emt
00:00:12]} b6 {[%clk 00:41:35]} {[%emt 00:00:25]} 21. Bxe7 {[%clk 00:38:42]}
{[%emt 00:00:14]} Qxe7 {[%clk 00:39:36]} {[%emt 00:02:29]} 22. Qc6 {[%clk
00:39:05]} {[%emt 00:00:07]} Ka7 {[%clk 00:40:03]} {[%emt 00:00:03]} 23. Qb7#
{[%clk 00:39:27]} {[%emt 00:00:07]} 1-0

[Event "NJSK 2018 Jeugd B"]
[Site "Assen, Netherlands"]
[Date "2018.05.04"]
[Round "6.2"]
[White "Tang, Charlie"]
[Black "Bruil, Rembrandt"]
[Result "1/2-1/2"]
[TimeControl "40/90m+30m+30sec/move"]
[WhiteElo "2127"]
[BlackElo "1998"]

1. e4 {[%clk 01:30:56]} {[%emt 00:00:04]} c5 {[%clk 01:30:56]} {[%emt
00:00:03]} 2. Nf3 {[%clk 01:31:16]} {[%emt 00:00:10]} Nc6 {[%clk 01:31:16]}
{[%emt 00:00:11]} 3. d4 {[%clk 01:31:30]} {[%emt 00:00:16]} cxd4 {[%clk
01:31:40]} {[%emt 00:00:06]} 4. Nxd4 {[%clk 01:31:54]} {[%emt 00:00:05]} g6
{[%clk 01:32:02]} {[%emt 00:00:08]} 5. Nc3 {[%clk 01:32:17]} {[%emt 00:00:08]}
Bg7 {[%clk 01:32:28]} {[%emt 00:00:03]} 6. Be3 {[%clk 01:32:40]} {[%emt
00:00:08]} Nf6 {[%clk 01:32:47]} {[%emt 00:00:10]} 7. Bc4 {[%clk 01:32:48]}
{[%emt 00:00:22]} O-O {[%clk 01:33:11]} {[%emt 00:00:07]} 8. Bb3 {[%clk
01:33:07]} {[%emt 00:00:11]} e6 {[%clk 01:33:30]} {[%emt 00:00:10]} 9. O-O
{[%clk 01:31:09]} {[%emt 00:02:28]} d5 {[%clk 01:33:30]} {[%emt 00:00:30]} 10.
exd5 {[%clk 01:31:11]} {[%emt 00:00:28]} exd5 {[%clk 01:33:55]} {[%emt
00:00:05]} 11. f3 {[%clk 01:31:17]} {[%emt 00:00:24]} Be6 {[%clk 01:32:36]}
{[%emt 00:01:49]} 12. Re1 {[%clk 01:27:08]} {[%emt 00:04:39]} Qd7 {[%clk
01:25:48]} {[%emt 00:07:18]} 13. Qd2 {[%clk 01:21:25]} {[%emt 00:06:13]} Rfe8
{[%clk 01:14:53]} {[%emt 00:11:24]} 14. Rad1 {[%clk 01:19:27]} {[%emt
00:02:29]} Rac8 {[%clk 01:06:55]} {[%emt 00:08:28]} 15. Qf2 {[%clk 01:16:59]}
{[%emt 00:02:58]} a6 {[%clk 01:02:01]} {[%emt 00:05:25]} 16. Nxc6 {[%clk
01:00:53]} {[%emt 00:16:35]} bxc6 {[%clk 01:00:06]} {[%emt 00:02:25]} 17. Na4
{[%clk 01:01:11]} {[%emt 00:00:12]} Qc7 {[%clk 00:57:34]} {[%emt 00:03:01]} 18.
Nc5 {[%clk 01:01:06]} {[%emt 00:00:35]} Nd7 {[%clk 00:56:10]} {[%emt 00:01:54]}
19. Bd4 {[%clk 00:56:06]} {[%emt 00:05:31]} Bxd4 {[%clk 00:42:06]} {[%emt
00:14:34]} 20. Qxd4 {[%clk 00:56:27]} {[%emt 00:00:09]} Qd6 {[%clk 00:38:50]}
{[%emt 00:03:46]} 21. Nxd7 {[%clk 00:52:42]} {[%emt 00:04:15]} Bxd7 {[%clk
00:38:49]} {[%emt 00:00:31]} 22. Qb6 {[%clk 00:50:57]} {[%emt 00:02:14]} Qf6
{[%clk 00:33:28]} {[%emt 00:05:52]} 23. c3 {[%clk 00:48:52]} {[%emt 00:02:35]}
Qh4 {[%clk 00:25:46]} {[%emt 00:08:11]} 24. Rxe8+ {[%clk 00:43:58]} {[%emt
00:05:24]} Rxe8 {[%clk 00:25:50]} {[%emt 00:00:27]} 25. Qxa6 {[%clk 00:44:14]}
{[%emt 00:00:14]} Re1+ {[%clk 00:25:40]} {[%emt 00:00:39]} 26. Rxe1 {[%clk
00:44:39]} {[%emt 00:00:06]} Qxe1+ {[%clk 00:26:05]} {[%emt 00:00:04]} 27. Qf1
{[%clk 00:45:04]} {[%emt 00:00:05]} Qd2 {[%clk 00:25:03]} {[%emt 00:01:33]} 28.
Qa1 {[%clk 00:32:19]} {[%emt 00:13:15]} Bf5 {[%clk 00:17:17]} {[%emt 00:08:15]}
29. h3 {[%clk 00:30:11]} {[%emt 00:02:38]} h5 {[%clk 00:09:33]} {[%emt
00:08:15]} 30. a4 {[%clk 00:25:09]} {[%emt 00:05:31]} g5 {[%clk 00:08:33]}
{[%emt 00:01:30]} 31. a5 {[%clk 00:07:34]} {[%emt 00:18:05]} g4 {[%clk
00:07:26]} {[%emt 00:01:37]} 32. hxg4 {[%clk 00:07:42]} {[%emt 00:00:22]} hxg4
{[%clk 00:07:49]} {[%emt 00:00:07]} 33. fxg4 {[%clk 00:07:22]} {[%emt
00:00:50]} Be4 {[%clk 00:06:51]} {[%emt 00:01:28]} 34. Qf1 {[%clk 00:07:48]}
{[%emt 00:00:05]} Qxb2 {[%clk 00:07:08]} {[%emt 00:00:13]} 35. Bd1 {[%clk
00:07:36]} {[%emt 00:00:41]} Qxc3 {[%clk 00:05:54]} {[%emt 00:01:45]} 36. a6
{[%clk 00:07:37]} {[%emt 00:00:29]} Qd4+ {[%clk 00:06:04]} {[%emt 00:00:19]} 37.
Kh1 {[%clk 00:07:47]} {[%emt 00:00:18]} Qh8 {[%clk 00:01:52]} {[%emt 00:04:44]}
38. Kg1 {[%clk 00:08:14]} {[%emt 00:00:04]} Qd4+ {[%clk 00:02:18]} {[%emt
00:00:03]} 39. Kh1 {[%clk 00:08:40]} {[%emt 00:00:04]} Qb6 {[%clk 00:00:48]}
{[%emt 00:02:00]} 40. Bf3 {[%clk 00:07:14]} {[%emt 00:01:57]} Bxf3 {[%clk
00:00:48]} {[%emt 00:00:30]} 41. gxf3 {[%emt 00:04:12]} 1/2-1/2

[Event "NJSK 2018 Jeugd B"]
[Site "Assen, Netherlands"]
[Date "2018.05.04"]
[Round "6.3"]
[White "Honkoop, Gilian"]
[Black "Kouwenhoven, Derk"]
[Result "1-0"]
[TimeControl "40/90m+30m+30sec/move"]
[WhiteElo "1889"]
[BlackElo "2091"]

1. d4 {[%clk 01:30:59]} {[%emt 00:00:02]} Nf6 {[%clk 01:30:25]} {[%emt
00:00:36]} 2. Bf4 {[%clk 01:31:26]} {[%emt 00:00:02]} c5 {[%clk 01:30:04]}
{[%emt 00:00:50]} 3. d5 {[%clk 01:31:53]} {[%emt 00:00:05]} d6 {[%clk
01:30:00]} {[%emt 00:00:33]} 4. Nc3 {[%clk 01:32:06]} {[%emt 00:00:17]} a6
{[%clk 01:30:07]} {[%emt 00:00:23]} 5. a4 {[%clk 01:32:12]} {[%emt 00:00:24]}
e5 {[%clk 01:30:16]} {[%emt 00:00:20]} 6. Bg3 {[%clk 01:27:26]} {[%emt
00:05:17]} Qa5 {[%clk 01:24:32]} {[%emt 00:06:13]} 7. e3 {[%clk 01:24:30]}
{[%emt 00:03:26]} Nbd7 {[%clk 01:21:13]} {[%emt 00:03:50]} 8. f3 {[%clk
01:12:39]} {[%emt 00:12:21]} g6 {[%clk 01:13:17]} {[%emt 00:08:26]} 9. e4
{[%clk 01:08:48]} {[%emt 00:04:21]} Bh6 {[%clk 01:12:18]} {[%emt 00:01:29]} 10.
Bd3 {[%clk 01:05:15]} {[%emt 00:04:03]} Qb4 {[%clk 01:04:55]} {[%emt 00:07:53]}
11. a5 {[%clk 00:59:50]} {[%emt 00:05:55]} c4 {[%clk 00:56:21]} {[%emt
00:09:03]} 12. Bf1 {[%clk 00:49:48]} {[%emt 00:10:32]} Qxb2 {[%clk 00:54:08]}
{[%emt 00:02:44]} 13. Nge2 {[%clk 00:49:54]} {[%emt 00:00:24]} Nc5 {[%clk
00:47:57]} {[%emt 00:06:41]} 14. Ra2 {[%clk 00:46:48]} {[%emt 00:03:36]} Qb4
{[%clk 00:46:28]} {[%emt 00:01:59]} 15. Qa1 {[%clk 00:46:51]} {[%emt 00:00:26]}
Nfxe4 {[%clk 00:33:29]} {[%emt 00:13:29]} 16. fxe4 {[%clk 00:43:12]} {[%emt
00:04:10]} Nxe4 {[%clk 00:33:54]} {[%emt 00:00:05]} 17. Ra3 {[%clk 00:27:13]}
{[%emt 00:16:28]} Bg4 {[%clk 00:28:15]} {[%emt 00:06:10]} 18. Kd1 {[%clk
00:26:57]} {[%emt 00:00:46]} Nf6 {[%clk 00:24:35]} {[%emt 00:04:10]} 19. Bf2
{[%clk 00:17:43]} {[%emt 00:09:44]} Nxd5 {[%clk 00:23:21]} {[%emt 00:01:44]} 20.
Ne4 {[%clk 00:17:48]} {[%emt 00:00:24]} Ke7 {[%clk 00:17:48]} {[%emt 00:06:03]}
21. h3 {[%clk 00:14:51]} {[%emt 00:03:28]} Bxe2+ {[%clk 00:15:45]} {[%emt
00:02:32]} 22. Bxe2 {[%clk 00:15:10]} {[%emt 00:00:11]} Rac8 {[%clk 00:14:49]}
{[%emt 00:01:26]} 23. g4 {[%clk 00:08:03]} {[%emt 00:07:37]} f5 {[%clk
00:12:58]} {[%emt 00:02:22]} 24. c3 {[%clk 00:06:27]} {[%emt 00:02:06]} Qb5
{[%clk 00:13:23]} {[%emt 00:00:05]} 25. Bh4+ {[%clk 00:06:15]} {[%emt
00:00:41]} Kd7 {[%clk 00:11:50]} {[%emt 00:02:04]} 26. gxf5 {[%clk 00:03:04]}
{[%emt 00:03:41]} Ne3+ {[%clk 00:10:57]} {[%emt 00:01:22]} 27. Kc1 {[%clk
00:03:18]} {[%emt 00:00:16]} gxf5 {[%clk 00:08:29]} {[%emt 00:02:59]} 28. Bg5
{[%clk 00:02:37]} {[%emt 00:01:11]} Bxg5 {[%clk 00:08:27]} {[%emt 00:00:32]} 29.
Nxg5 {[%clk 00:03:06]} {[%emt 00:00:01]} Rhg8 {[%clk 00:07:55]} {[%emt
00:01:03]} 30. Nxh7 {[%clk 00:02:48]} {[%emt 00:00:47]} Rg6 {[%clk 00:06:29]}
{[%emt 00:01:56]} 31. Kd2 {[%clk 00:01:11]} {[%emt 00:02:07]} Nd5 {[%clk
00:06:03]} {[%emt 00:00:56]} 32. h4 {[%clk 00:01:14]} {[%emt 00:00:26]} Rh8
{[%clk 00:05:59]} {[%emt 00:00:35]} 33. Ng5 {[%clk 00:01:41]} {[%emt 00:00:02]}
Rxg5 {[%clk 00:05:32]} {[%emt 00:00:58]} 34. hxg5 {[%clk 00:02:09]} {[%emt
00:00:01]} Rxh1 {[%clk 00:05:48]} 35. Qxh1 {[%clk 00:02:37]} {[%emt 00:00:16]}
Qb2+ {[%clk 00:06:09]} {[%emt 00:00:10]} 36. Ke1 {[%clk 00:02:53]} {[%emt
00:00:14]} Qc1+ {[%clk 00:05:57]} {[%emt 00:00:42]} 37. Bd1 {[%clk 00:03:16]}
{[%emt 00:00:07]} Qxa3 {[%clk 00:06:23]} {[%emt 00:00:04]} 38. Qxd5 {[%clk
00:03:26]} {[%emt 00:00:19]} Qxc3+ {[%clk 00:06:44]} {[%emt 00:00:09]} 39. Ke2
{[%clk 00:03:17]} {[%emt 00:00:38]} Qb2+ {[%clk 00:03:27]} {[%emt 00:03:48]} 40.
Kf1 {[%clk 00:02:00]} {[%emt 00:01:46]} Qc1 {[%clk 00:01:18]} {[%emt 00:02:41]}
41. g6 {[%clk 00:00:33]} {[%emt 00:01:55]} Qf4+ {[%clk 00:25:19]} {[%emt
00:06:30]} 42. Qf3 {[%clk 00:29:59]} {[%emt 00:01:03]} Qxf3+ {[%clk 00:04:07]}
{[%emt 00:21:44]} 43. Bxf3 {[%clk 00:30:18]} {[%emt 00:00:11]} c3 {[%clk
00:04:35]} {[%emt 00:00:02]} 44. Ke2 {[%clk 00:29:03]} {[%emt 00:01:45]} Ke7
{[%clk 00:01:05]} {[%emt 00:04:00]} 45. Bxb7 {[%clk 00:29:22]} {[%emt
00:00:11]} e4 {[%clk 00:01:25]} {[%emt 00:00:10]} 46. Bxa6 {[%clk 00:28:15]}
{[%emt 00:01:36]} f4 {[%clk 00:01:41]} {[%emt 00:00:14]} 47. g7 {[%clk
00:26:06]} {[%emt 00:02:39]} f3+ {[%clk 00:01:38]} {[%emt 00:00:34]} 48. Kd1
{[%clk 00:25:11]} {[%emt 00:01:24]} Kf7 {[%clk 00:01:58]} {[%emt 00:00:10]} 49.
Bc4+ {[%clk 00:25:16]} {[%emt 00:00:25]} Kxg7 {[%clk 00:01:50]} {[%emt
00:00:38]} 50. a6 {[%clk 00:25:25]} {[%emt 00:00:21]} d5 {[%clk 00:00:41]}
{[%emt 00:01:39]} 51. a7 {[%clk 00:25:51]} {[%emt 00:00:05]} dxc4 {[%clk
00:00:47]} {[%emt 00:00:23]} 52. a8=Q {[%clk 00:26:19]} {[%emt 00:00:03]} f2
{[%clk 00:01:12]} {[%emt 00:00:04]} 53. Qa7+ {[%emt 00:00:17]} 1-0

[Event "NJSK 2018 Jeugd B"]
[Site "Assen, Netherlands"]
[Date "2018.05.04"]
[Round "6.4"]
[White "Van Randtwijk, Mick"]
[Black "Grutter, Tim"]
[Result "0-1"]
[TimeControl "40/90m+30m+30sec/move"]
[WhiteElo "1992"]
[BlackElo "1974"]

1. e4 {[%clk 01:30:57]} {[%emt 00:00:03]} c5 {[%clk 01:30:53]} {[%emt
00:00:07]} 2. Nf3 {[%clk 01:31:20]} {[%emt 00:00:07]} e6 {[%clk 01:31:17]}
{[%emt 00:00:06]} 3. d4 {[%clk 01:31:45]} {[%emt 00:00:06]} cxd4 {[%clk
01:31:42]} {[%emt 00:00:05]} 4. Nxd4 {[%clk 01:32:10]} {[%emt 00:00:04]} Nc6
{[%clk 01:32:02]} {[%emt 00:00:11]} 5. Nc3 {[%clk 01:32:30]} {[%emt 00:00:10]}
Qc7 {[%clk 01:32:26]} {[%emt 00:00:05]} 6. Be3 {[%clk 01:32:39]} {[%emt
00:00:20]} a6 {[%clk 01:32:52]} {[%emt 00:00:05]} 7. Be2 {[%clk 01:32:57]}
{[%emt 00:00:11]} Nf6 {[%clk 01:33:07]} {[%emt 00:00:16]} 8. O-O {[%clk
01:33:08]} {[%emt 00:00:18]} Bb4 {[%clk 01:33:31]} {[%emt 00:00:07]} 9. Na4
{[%clk 01:33:33]} {[%emt 00:00:06]} O-O {[%clk 01:33:50]} {[%emt 00:00:11]} 10.
Nxc6 {[%clk 01:32:15]} {[%emt 00:01:47]} bxc6 {[%clk 01:33:59]} {[%emt
00:00:22]} 11. Nb6 {[%clk 01:32:37]} {[%emt 00:00:07]} Rb8 {[%clk 01:34:24]}
{[%emt 00:00:05]} 12. Nxc8 {[%clk 01:33:01]} {[%emt 00:00:06]} Rfxc8 {[%clk
01:34:51]} {[%emt 00:00:03]} 13. Bxa6 {[%clk 01:30:56]} {[%emt 00:02:35]} Rf8
{[%clk 01:35:14]} {[%emt 00:00:06]} 14. Bd3 {[%clk 01:28:16]} {[%emt 00:03:11]}
Bd6 {[%clk 01:35:36]} {[%emt 00:00:09]} 15. f4 {[%clk 01:26:17]} {[%emt
00:02:29]} e5 {[%clk 01:35:59]} {[%emt 00:00:06]} 16. f5 {[%clk 01:26:39]}
{[%emt 00:00:08]} Rxb2 {[%clk 01:36:23]} {[%emt 00:00:06]} 17. g4 {[%clk
01:18:53]} {[%emt 00:08:15]} Qa5 {[%clk 01:36:39]} {[%emt 00:00:16]} 18. Kh1
{[%clk 01:17:01]} {[%emt 00:02:20]} Bc5 {[%clk 01:34:02]} {[%emt 00:03:08]} 19.
Bg5 {[%clk 01:02:59]} {[%emt 00:14:31]} Be7 {[%clk 01:28:23]} {[%emt 00:06:09]}
20. Bd2 {[%clk 00:53:19]} {[%emt 00:10:10]} Bb4 {[%clk 01:20:01]} {[%emt
00:08:52]} 21. Qc1 {[%clk 00:51:34]} {[%emt 00:02:16]} Bxd2 {[%clk 01:16:20]}
{[%emt 00:04:10]} 22. Qxb2 {[%clk 00:51:59]} {[%emt 00:00:06]} Bc3 {[%clk
01:16:46]} {[%emt 00:00:04]} 23. Qc1 {[%clk 00:44:27]} {[%emt 00:08:02]} Bxa1
{[%clk 01:16:28]} {[%emt 00:00:47]} 24. Qxa1 {[%clk 00:44:54]} {[%emt
00:00:04]} Nxg4 {[%clk 01:15:43]} {[%emt 00:01:16]} 25. Qc1 {[%clk 00:45:19]}
{[%emt 00:00:04]} Qd8 {[%clk 01:13:31]} {[%emt 00:02:41]} 26. Qd2 {[%clk
00:36:31]} {[%emt 00:09:18]} d5 {[%clk 01:08:29]} {[%emt 00:05:33]} 27. Qe2
{[%clk 00:31:33]} {[%emt 00:05:28]} Qh4 {[%clk 01:04:19]} {[%emt 00:04:40]} 28.
exd5 {[%clk 00:31:41]} {[%emt 00:00:22]} cxd5 {[%clk 01:04:01]} {[%emt
00:00:47]} 29. a4 {[%clk 00:32:02]} {[%emt 00:00:09]} Ra8 {[%clk 00:59:43]}
{[%emt 00:04:48]} 30. Bb5 {[%clk 00:32:07]} {[%emt 00:00:25]} d4 {[%clk
00:56:26]} {[%emt 00:03:47]} 31. Bc6 {[%clk 00:29:39]} {[%emt 00:02:58]} Rc8
{[%clk 00:55:55]} {[%emt 00:01:02]} 32. Bf3 {[%clk 00:26:32]} {[%emt 00:03:37]}
Ne3 {[%clk 00:55:13]} {[%emt 00:01:12]} 33. Qa6 {[%clk 00:26:55]} {[%emt
00:00:07]} Rd8 {[%clk 00:53:10]} {[%emt 00:02:32]} 34. Rg1 {[%clk 00:25:48]}
{[%emt 00:01:37]} e4 {[%clk 00:47:08]} {[%emt 00:06:32]} 35. Be2 {[%clk
00:23:18]} {[%emt 00:03:00]} d3 {[%clk 00:43:05]} {[%emt 00:04:32]} 36. Qa7
{[%clk 00:17:55]} {[%emt 00:05:54]} Nxc2 {[%clk 00:38:34]} {[%emt 00:05:01]} 37.
Bd1 {[%clk 00:13:54]} {[%emt 00:04:31]} e3 {[%clk 00:36:09]} {[%emt 00:02:55]}
38. Bxc2 {[%clk 00:12:50]} {[%emt 00:01:33]} Qe4 {[%clk 00:36:31]} {[%emt
00:00:09]} 39. Rg2 {[%clk 00:13:19]} {[%emt 00:00:01]} dxc2 {[%clk 00:36:52]}
{[%emt 00:00:09]} 40. Qc7 {[%clk 00:12:59]} {[%emt 00:00:50]} Rd1 {[%clk
00:37:16]} {[%emt 00:00:06]} 0-1